[Event "Titled Tuesday Blitz August 10 2021"]
[White "Moussard, Jules"]
[Black "Shimanov, Aleksandr"]
[WhiteFideId "642908"]
[BlackFideId "4198603"]
[WhiteElo "2644"]
[BlackElo "2596"]
[Result "1-0"]
[Round "07"]
[TimeControl "180+1"]
[Date "2021.08.10"]
[WhiteClock "0:00:45"]
[BlackClock "0:00:03"]

1. Nf3 {[%clk 0:03:00]}  d5 {[%clk 0:02:59]} 2. g3 {[%clk 0:03:01]}  Bg4 {[%clk 0:02:59]} 3. Bg2 {[%clk 0:03:01]}  Nd7 {[%clk 0:02:59]} 4. O-O {[%clk 0:03:02]}  c6 {[%clk 0:02:59]} 5. c4 {[%clk 0:03:02]}  e6 {[%clk 0:02:58]} 6. cxd5 {[%clk 0:02:59]}  exd5 {[%clk 0:02:57]} 7. d3 {[%clk 0:02:59]}  Ngf6 {[%clk 0:02:56]} 8. Nc3 {[%clk 0:02:59]}  Bc5 {[%clk 0:02:50]} 9. b3 {[%clk 0:02:48]}  O-O {[%clk 0:02:49]} 10. Bb2 {[%clk 0:02:49]}  Re8 {[%clk 0:02:50]} 11. Qc2 {[%clk 0:02:47]}  Bb6 {[%clk 0:02:46]} 12. Na4 {[%clk 0:02:43]}  Qe7 {[%clk 0:02:45]} 13. Nxb6 {[%clk 0:02:41]}  axb6 {[%clk 0:02:46]} 14. Rfe1 {[%clk 0:02:42]}  b5 {[%clk 0:02:45]} 15. h3 {[%clk 0:02:32]}  Bh5 {[%clk 0:02:44]} 16. g4 {[%clk 0:02:30]}  Bg6 {[%clk 0:02:43]} 17. Nh4 {[%clk 0:02:30]}  Qc5 {[%clk 0:02:24]} 18. Qd2 {[%clk 0:02:28]}  Re7 {[%clk 0:02:14]} 19. a4 {[%clk 0:02:26]}  Ree8 {[%clk 0:02:11]} 20. Nxg6 {[%clk 0:02:23]}  hxg6 {[%clk 0:02:11]} 21. b4 {[%clk 0:02:11]}  Qb6 {[%clk 0:02:05]} 22. a5 {[%clk 0:02:06]}  Qc7 {[%clk 0:02:02]} 23. e3 {[%clk 0:02:03]}  g5 {[%clk 0:01:59]} 24. Bd4 {[%clk 0:02:02]}  Qd6 {[%clk 0:01:58]} 25. Rec1 {[%clk 0:01:59]}  Re6 {[%clk 0:01:57]} 26. Ra2 {[%clk 0:01:41]}  Ne5 {[%clk 0:01:54]} 27. f4 {[%clk 0:01:35]}  gxf4 {[%clk 0:01:52]} 28. exf4 {[%clk 0:01:36]}  Ned7 {[%clk 0:01:52]} 29. Bf3 {[%clk 0:01:28]}  g6 {[%clk 0:01:21]} 30. f5 {[%clk 0:01:06]}  Qg3+ {[%clk 0:01:20]} 31. Qg2 {[%clk 0:01:06]}  Qxg2+ {[%clk 0:01:20]} 32. Kxg2 {[%clk 0:01:03]}  gxf5 {[%clk 0:01:11]} 33. gxf5 {[%clk 0:01:04]}  Rd6 {[%clk 0:00:58]} 34. Kg3 {[%clk 0:01:04]}  Kh7 {[%clk 0:00:53]} 35. Kf4 {[%clk 0:01:03]}  Ng8 {[%clk 0:00:50]} 36. Rg1 {[%clk 0:01:00]}  Ngf6 {[%clk 0:00:39]} 37. Re2 {[%clk 0:00:57]}  Re8 {[%clk 0:00:36]} 38. Rxe8 {[%clk 0:00:47]}  Nxe8 {[%clk 0:00:36]} 39. Bh5 {[%clk 0:00:48]}  Rh6 {[%clk 0:00:24]} 40. Bxf7 {[%clk 0:00:47]}  Nef6 {[%clk 0:00:15]} 41. Bg8+ {[%clk 0:00:43]}  Kh8 {[%clk 0:00:13]} 42. Be6 {[%clk 0:00:43]}  Rh4+ {[%clk 0:00:03]} 43. Rg4 {[%clk 0:00:43]}  Rxg4+ {[%clk 0:00:02]} 44. hxg4 {[%clk 0:00:44]}  Kh7 {[%clk 0:00:02]} 45. g5 {[%clk 0:00:45]}  Nh5+ {[%clk 0:00:03]} 46. Kg4 {[%clk 0:00:45]} 1-0


[Site "https://www.chess.com"]

[Event "Titled Tuesday Blitz August 10 2021"]
[White "Nakamura, Hikaru"]
[Black "Lintchevski, Daniil"]
[WhiteFideId "2016192"]
[BlackFideId "4171055"]
[WhiteElo "2900"]
[BlackElo "2494"]
[Result "1-0"]
[Round "07"]
[TimeControl "180+1"]
[Date "2021.08.10"]
[WhiteClock "0:01:54"]
[BlackClock "0:00:59"]

1. e4 {[%clk 0:03:00]}  c6 {[%clk 0:03:00]} 2. Nf3 {[%clk 0:03:00]}  d5 {[%clk 0:03:00]} 3. Nc3 {[%clk 0:03:01]}  dxe4 {[%clk 0:02:56]} 4. Nxe4 {[%clk 0:03:02]}  Nf6 {[%clk 0:02:57]} 5. Qe2 {[%clk 0:03:00]}  Nxe4 {[%clk 0:02:57]} 6. Qxe4 {[%clk 0:03:01]}  Nd7 {[%clk 0:02:57]} 7. d4 {[%clk 0:02:58]}  Nf6 {[%clk 0:02:56]} 8. Qf4 {[%clk 0:02:59]}  Qa5+ {[%clk 0:02:30]} 9. c3 {[%clk 0:02:54]}  Qf5 {[%clk 0:02:31]} 10. Qd2 {[%clk 0:02:54]}  Qh5 {[%clk 0:02:03]} 11. Be2 {[%clk 0:02:52]}  Bg4 {[%clk 0:02:02]} 12. h3 {[%clk 0:02:52]}  e6 {[%clk 0:01:57]} 13. O-O {[%clk 0:02:50]}  Bxf3 {[%clk 0:01:53]} 14. Bxf3 {[%clk 0:02:51]}  Qf5 {[%clk 0:01:54]} 15. Be2 {[%clk 0:02:47]}  Bd6 {[%clk 0:01:46]} 16. Bd3 {[%clk 0:02:47]}  Qh5 {[%clk 0:01:46]} 17. Re1 {[%clk 0:02:35]}  O-O-O {[%clk 0:01:46]} 18. Qc2 {[%clk 0:02:30]}  Nd5 {[%clk 0:01:34]} 19. Bf1 {[%clk 0:02:27]}  Qg6 {[%clk 0:01:27]} 20. Qa4 {[%clk 0:02:25]}  Kb8 {[%clk 0:01:26]} 21. c4 {[%clk 0:02:25]}  Nf4 {[%clk 0:01:22]} 22. Qb3 {[%clk 0:02:12]}  Bc7 {[%clk 0:01:12]} 23. Rd1 {[%clk 0:02:12]}  e5 {[%clk 0:01:06]} 24. Bxf4 {[%clk 0:02:09]}  exf4 {[%clk 0:01:06]} 25. c5 {[%clk 0:02:09]}  Qf6 {[%clk 0:01:02]} 26. Ba6 {[%clk 0:02:07]}  b6 {[%clk 0:01:03]} 27. cxb6 {[%clk 0:01:56]}  Bxb6 {[%clk 0:00:59]} 28. a4 {[%clk 0:01:54]} 1-0


[Site "https://www.chess.com"]

[Event "Titled Tuesday Blitz August 10 2021"]
[White "Oparin, Grigoriy"]
[Black "Demidov, Mikhail"]
[WhiteFideId "24125890"]
[BlackFideId "4197143"]
[WhiteElo "2628"]
[BlackElo "2559"]
[Result "0-1"]
[Round "07"]
[TimeControl "180+1"]
[Date "2021.08.10"]
[WhiteClock "0:00:05"]
[BlackClock "0:00:07"]

1. d4 {[%clk 0:03:00]}  d5 {[%clk 0:02:59]} 2. c4 {[%clk 0:03:01]}  c6 {[%clk 0:02:59]} 3. Nf3 {[%clk 0:03:01]}  Nf6 {[%clk 0:02:59]} 4. g3 {[%clk 0:03:01]}  Bf5 {[%clk 0:02:59]} 5. Nc3 {[%clk 0:03:02]}  e6 {[%clk 0:02:59]} 6. Qb3 {[%clk 0:03:02]}  Qb6 {[%clk 0:02:58]} 7. Nh4 {[%clk 0:03:02]}  Qxb3 {[%clk 0:02:55]} 8. axb3 {[%clk 0:03:02]}  Bc2 {[%clk 0:02:56]} 9. c5 {[%clk 0:02:55]}  Bxb3 {[%clk 0:02:52]} 10. e3 {[%clk 0:02:55]}  Nbd7 {[%clk 0:02:42]} 11. Ra3 {[%clk 0:02:46]}  Bc2 {[%clk 0:02:36]} 12. Kd2 {[%clk 0:02:45]}  Bg6 {[%clk 0:02:31]} 13. Nxg6 {[%clk 0:02:43]}  hxg6 {[%clk 0:02:31]} 14. b4 {[%clk 0:02:44]}  e5 {[%clk 0:01:53]} 15. b5 {[%clk 0:02:41]}  Be7 {[%clk 0:01:39]} 16. bxc6 {[%clk 0:02:39]}  bxc6 {[%clk 0:01:39]} 17. Ra6 {[%clk 0:02:36]}  exd4 {[%clk 0:01:26]} 18. exd4 {[%clk 0:02:37]}  Nb8 {[%clk 0:01:26]} 19. Ra4 {[%clk 0:02:37]}  a5 {[%clk 0:01:25]} 20. f3 {[%clk 0:02:33]}  Nbd7 {[%clk 0:01:24]} 21. Kc2 {[%clk 0:02:32]}  Bd8 {[%clk 0:01:22]} 22. Bf4 {[%clk 0:02:26]}  Nf8 {[%clk 0:01:22]} 23. Nb5 {[%clk 0:01:44]}  Ne6 {[%clk 0:01:16]} 24. Nd6+ {[%clk 0:01:43]}  Kf8 {[%clk 0:01:16]} 25. Bd2 {[%clk 0:01:38]}  Bc7 {[%clk 0:01:10]} 26. h4 {[%clk 0:01:31]}  Ke7 {[%clk 0:01:07]} 27. Bh3 {[%clk 0:01:26]}  Bxd6 {[%clk 0:01:04]} 28. cxd6+ {[%clk 0:01:27]}  Kxd6 {[%clk 0:01:04]} 29. Bxa5 {[%clk 0:01:27]}  Nxd4+ {[%clk 0:01:00]} 30. Kd3 {[%clk 0:01:26]}  Nxf3 {[%clk 0:00:53]} 31. Rha1 {[%clk 0:01:12]}  Ne5+ {[%clk 0:00:53]} 32. Kc2 {[%clk 0:01:12]}  Rab8 {[%clk 0:00:30]} 33. Bb4+ {[%clk 0:01:09]}  c5 {[%clk 0:00:30]} 34. Ra6+ {[%clk 0:01:08]}  Nc6 {[%clk 0:00:31]} 35. Bd2 {[%clk 0:01:08]}  Kc7 {[%clk 0:00:17]} 36. Kd1 {[%clk 0:00:22]}  Rb6 {[%clk 0:00:16]} 37. R6a2 {[%clk 0:00:09]}  Ne4 {[%clk 0:00:15]} 38. Bf4+ {[%clk 0:00:09]}  Kb7 {[%clk 0:00:15]} 39. Rc1 {[%clk 0:00:07]}  Nb4 {[%clk 0:00:15]} 40. Re2 {[%clk 0:00:07]}  Re8 {[%clk 0:00:13]} 41. Bg2 {[%clk 0:00:06]}  f5 {[%clk 0:00:13]} 42. Bxe4 {[%clk 0:00:06]}  dxe4 {[%clk 0:00:12]} 43. Rxc5 {[%clk 0:00:07]}  Nd3 {[%clk 0:00:12]} 44. Rc7+ {[%clk 0:00:07]}  Ka6 {[%clk 0:00:10]} 45. Ra2+ {[%clk 0:00:07]}  Kb5 {[%clk 0:00:09]} 46. Rxg7 {[%clk 0:00:07]}  Nxf4 {[%clk 0:00:09]} 47. gxf4 {[%clk 0:00:08]}  Rd8+ {[%clk 0:00:09]} 48. Ke2 {[%clk 0:00:09]}  Rbd6 {[%clk 0:00:09]} 49. Rc2 {[%clk 0:00:08]}  Kb6 {[%clk 0:00:07]} 50. h5 {[%clk 0:00:06]}  gxh5 {[%clk 0:00:07]} 51. Rg5 {[%clk 0:00:07]}  Rd5 {[%clk 0:00:07]} 52. Rxh5 {[%clk 0:00:07]}  R8d6 {[%clk 0:00:07]} 53. Rh3 {[%clk 0:00:07]}  Rc6 {[%clk 0:00:07]} 54. Rb3+ {[%clk 0:00:07]}  Kc7 {[%clk 0:00:07]} 55. Rxc6+ {[%clk 0:00:07]}  Kxc6 {[%clk 0:00:08]} 56. Rc3+ {[%clk 0:00:08]}  Kd6 {[%clk 0:00:09]} 57. Rc8 {[%clk 0:00:08]}  Ke7 {[%clk 0:00:09]} 58. Rc7+ {[%clk 0:00:05]}  Kf6 {[%clk 0:00:09]} 59. Rc6+ {[%clk 0:00:05]}  Kf7 {[%clk 0:00:10]} 60. Rc3 {[%clk 0:00:05]}  Kg6 {[%clk 0:00:09]} 61. Rh3 {[%clk 0:00:05]}  Kf6 {[%clk 0:00:10]} 62. Rh6+ {[%clk 0:00:05]}  Kg7 {[%clk 0:00:10]} 63. Rh3 {[%clk 0:00:06]}  Ra5 {[%clk 0:00:09]} 64. Rb3 {[%clk 0:00:06]}  Kg6 {[%clk 0:00:09]} 65. Rg3+ {[%clk 0:00:06]}  Kf6 {[%clk 0:00:09]} 66. Rb3 {[%clk 0:00:06]}  Ra2+ {[%clk 0:00:09]} 67. Ke3 {[%clk 0:00:06]}  Rc2 {[%clk 0:00:09]} 68. Rb6+ {[%clk 0:00:06]}  Kf7 {[%clk 0:00:09]} 69. Rb5 {[%clk 0:00:07]}  Kg6 {[%clk 0:00:10]} 70. Rb8 {[%clk 0:00:05]}  Rc3+ {[%clk 0:00:10]} 71. Kd4 {[%clk 0:00:06]}  Rc6 {[%clk 0:00:08]} 72. Ke3 {[%clk 0:00:05]}  Rd6 {[%clk 0:00:08]} 73. Rg8+ {[%clk 0:00:05]}  Kf7 {[%clk 0:00:08]} 74. Rg5 {[%clk 0:00:04]}  Rd3+ {[%clk 0:00:08]} 75. Ke2 {[%clk 0:00:04]}  Kf6 {[%clk 0:00:08]} 76. Rh5 {[%clk 0:00:04]}  Rf3 {[%clk 0:00:08]} 77. Rh6+ {[%clk 0:00:05]}  Ke7 {[%clk 0:00:08]} 78. Ra6 {[%clk 0:00:06]}  Rxf4 {[%clk 0:00:08]} 79. Ke3 {[%clk 0:00:07]}  Rf3+ {[%clk 0:00:08]} 80. Kd4 {[%clk 0:00:07]}  Rf1 {[%clk 0:00:07]} 81. Ke5 {[%clk 0:00:07]}  e3 {[%clk 0:00:07]} 82. Re6+ {[%clk 0:00:06]}  Kf7 {[%clk 0:00:07]} 83. Rf6+ {[%clk 0:00:05]}  Kg7 {[%clk 0:00:07]} 0-1


[Site "https://www.chess.com"]

[Event "Titled Tuesday Blitz August 10 2021"]
[White "Remizov, Yaroslav"]
[Black "Nagy, Gabor"]
[WhiteFideId "34134015"]
[BlackFideId "737119"]
[WhiteElo "2339"]
[BlackElo "2562"]
[Result "0-1"]
[Round "07"]
[TimeControl "180+1"]
[Date "2021.08.10"]
[WhiteClock "0:00:06"]
[BlackClock "0:00:20"]

1. e4 {[%clk 0:03:00]}  c5 {[%clk 0:02:58]} 2. Nf3 {[%clk 0:02:58]}  Nc6 {[%clk 0:02:58]} 3. Bb5 {[%clk 0:02:53]}  g6 {[%clk 0:02:58]} 4. O-O {[%clk 0:02:53]}  Bg7 {[%clk 0:02:55]} 5. Re1 {[%clk 0:02:49]}  e5 {[%clk 0:02:51]} 6. Nc3 {[%clk 0:02:41]}  Nge7 {[%clk 0:02:50]} 7. a3 {[%clk 0:02:38]}  O-O {[%clk 0:02:48]} 8. Bc4 {[%clk 0:02:38]}  d6 {[%clk 0:02:45]} 9. d3 {[%clk 0:02:38]}  h6 {[%clk 0:02:44]} 10. Rb1 {[%clk 0:01:17]}  a6 {[%clk 0:02:41]} 11. h3 {[%clk 0:01:14]}  Kh7 {[%clk 0:02:39]} 12. Ba2 {[%clk 0:01:12]}  b5 {[%clk 0:02:30]} 13. b4 {[%clk 0:01:09]}  cxb4 {[%clk 0:02:29]} 14. axb4 {[%clk 0:01:10]}  f5 {[%clk 0:02:22]} 15. Nd5 {[%clk 0:01:06]}  Bd7 {[%clk 0:02:11]} 16. c4 {[%clk 0:00:50]}  Nxd5 {[%clk 0:01:48]} 17. exd5 {[%clk 0:00:42]}  Ne7 {[%clk 0:01:42]} 18. c5 {[%clk 0:00:41]}  e4 {[%clk 0:01:28]} 19. cxd6 {[%clk 0:00:36]}  Nc8 {[%clk 0:01:22]} 20. dxe4 {[%clk 0:00:32]}  fxe4 {[%clk 0:01:21]} 21. Rxe4 {[%clk 0:00:32]}  Bf5 {[%clk 0:01:20]} 22. Re2 {[%clk 0:00:20]}  Nxd6 {[%clk 0:01:09]} 23. Nd4 {[%clk 0:00:19]}  Bxb1 {[%clk 0:01:01]} 24. Ne6 {[%clk 0:00:18]}  Qh4 {[%clk 0:00:47]} 25. Nxf8+ {[%clk 0:00:18]}  Rxf8 {[%clk 0:00:48]} 26. Bxb1 {[%clk 0:00:18]}  Qxb4 {[%clk 0:00:45]} 27. Qd3 {[%clk 0:00:08]}  Nf5 {[%clk 0:00:44]} 28. Re6 {[%clk 0:00:08]}  Rf6 {[%clk 0:00:38]} 29. Rxf6 {[%clk 0:00:07]}  Bxf6 {[%clk 0:00:39]} 30. Bd2 {[%clk 0:00:07]}  Qc4 {[%clk 0:00:37]} 31. Qxc4 {[%clk 0:00:06]}  bxc4 {[%clk 0:00:38]} 32. Kf1 {[%clk 0:00:06]}  c3 {[%clk 0:00:34]} 33. Bxf5 {[%clk 0:00:05]}  cxd2 {[%clk 0:00:15]} 34. Bc2 {[%clk 0:00:05]}  a5 {[%clk 0:00:15]} 35. Ke2 {[%clk 0:00:05]}  Bc3 {[%clk 0:00:15]} 36. Kd3 {[%clk 0:00:05]}  Bb4 {[%clk 0:00:15]} 37. Kc4 {[%clk 0:00:05]}  Kg7 {[%clk 0:00:14]} 38. Kb5 {[%clk 0:00:05]}  Kf6 {[%clk 0:00:14]} 39. Kc6 {[%clk 0:00:05]}  Ke5 {[%clk 0:00:14]} 40. d6 {[%clk 0:00:02]}  Bxd6 {[%clk 0:00:14]} 41. f4+ {[%clk 0:00:02]}  Kxf4 {[%clk 0:00:14]} 42. Kxd6 {[%clk 0:00:02]}  Kg3 {[%clk 0:00:14]} 43. Ke5 {[%clk 0:00:02]}  Kxg2 {[%clk 0:00:14]} 44. h4 {[%clk 0:00:01]}  g5 {[%clk 0:00:14]} 45. hxg5 {[%clk 0:00:02]}  hxg5 {[%clk 0:00:15]} 46. Kf5 {[%clk 0:00:02]}  Kf2 {[%clk 0:00:15]} 47. Kxg5 {[%clk 0:00:03]}  Ke1 {[%clk 0:00:16]} 48. Kf4 {[%clk 0:00:03]}  d1=Q {[%clk 0:00:16]} 49. Bxd1 {[%clk 0:00:04]}  Kxd1 {[%clk 0:00:17]} 50. Ke3 {[%clk 0:00:04]}  Kc2 {[%clk 0:00:18]} 51. Kd4 {[%clk 0:00:05]}  a4 {[%clk 0:00:18]} 52. Kc4 {[%clk 0:00:05]}  a3 {[%clk 0:00:19]} 53. Kb4 {[%clk 0:00:06]}  a2 {[%clk 0:00:20]} 0-1


[Site "https://www.chess.com"]

[Event "Titled Tuesday Blitz August 10 2021"]
[White "Sevian, Samuel"]
[Black "Timofeev, Artyom"]
[WhiteFideId "2040506"]
[BlackFideId "4140419"]
[WhiteElo "2979"]
[BlackElo "2582"]
[Result "1-0"]
[Round "07"]
[TimeControl "180+1"]
[Date "2021.08.10"]
[WhiteClock "0:02:16"]
[BlackClock "0:01:19"]

1. e4 {[%clk 0:03:00]}  c5 {[%clk 0:02:57]} 2. Nf3 {[%clk 0:02:53]}  Nc6 {[%clk 0:02:57]} 3. d4 {[%clk 0:02:53]}  cxd4 {[%clk 0:02:56]} 4. Nxd4 {[%clk 0:02:54]}  g6 {[%clk 0:02:54]} 5. Nc3 {[%clk 0:02:54]}  Bg7 {[%clk 0:02:53]} 6. Be3 {[%clk 0:02:54]}  Nf6 {[%clk 0:02:53]} 7. Nxc6 {[%clk 0:02:55]}  dxc6 {[%clk 0:02:53]} 8. Qxd8+ {[%clk 0:02:54]}  Kxd8 {[%clk 0:02:54]} 9. O-O-O {[%clk 0:02:51]}  Ke8 {[%clk 0:02:53]} 10. h3 {[%clk 0:02:51]}  Nd7 {[%clk 0:02:48]} 11. f4 {[%clk 0:02:51]}  Bxc3 {[%clk 0:02:38]} 12. bxc3 {[%clk 0:02:52]}  Nb6 {[%clk 0:02:39]} 13. g4 {[%clk 0:02:47]}  Be6 {[%clk 0:02:36]} 14. f5 {[%clk 0:02:47]}  Bxa2 {[%clk 0:02:18]} 15. Bxb6 {[%clk 0:02:46]}  axb6 {[%clk 0:02:17]} 16. Kb2 {[%clk 0:02:47]}  gxf5 {[%clk 0:02:12]} 17. gxf5 {[%clk 0:02:47]}  Ra4 {[%clk 0:01:58]} 18. Ra1 {[%clk 0:02:43]}  Rxe4 {[%clk 0:01:57]} 19. Rxa2 {[%clk 0:02:42]}  Kd7 {[%clk 0:01:57]} 20. Bd3 {[%clk 0:02:40]}  Re5 {[%clk 0:01:54]} 21. Rg1 {[%clk 0:02:37]}  h5 {[%clk 0:01:51]} 22. Ra4 {[%clk 0:02:35]}  b5 {[%clk 0:01:48]} 23. Rd4+ {[%clk 0:02:34]}  Kc7 {[%clk 0:01:48]} 24. Rg7 {[%clk 0:02:34]}  f6 {[%clk 0:01:47]} 25. h4 {[%clk 0:02:32]}  b6 {[%clk 0:01:28]} 26. Rf4 {[%clk 0:02:30]}  Kd6 {[%clk 0:01:25]} 27. Rg1 {[%clk 0:02:26]}  Kc7 {[%clk 0:01:25]} 28. Ra1 {[%clk 0:02:22]}  Kb7 {[%clk 0:01:25]} 29. Rd4 {[%clk 0:02:21]}  Rc8 {[%clk 0:01:22]} 30. Rd7+ {[%clk 0:02:15]}  Rc7 {[%clk 0:01:22]} 31. Rd8 {[%clk 0:02:15]}  Rc8 {[%clk 0:01:19]} 32. Ra7+ {[%clk 0:02:15]}  Kxa7 {[%clk 0:01:19]} 33. Rxc8 {[%clk 0:02:16]}  e6 {[%clk 0:01:19]} 34. Rxc6 {[%clk 0:02:15]}  exf5 {[%clk 0:01:19]} 35. Rxf6 {[%clk 0:02:16]} 1-0


[Site "https://www.chess.com"]

[Event "Titled Tuesday Blitz August 10 2021"]
[White "Timmermans, Mark"]
[Black "Zhigalko, Sergei"]
[WhiteFideId "1026399"]
[BlackFideId "13502956"]
[WhiteElo "2460"]
[BlackElo "2662"]
[Result "1-0"]
[Round "07"]
[TimeControl "180+1"]
[Date "2021.08.10"]
[WhiteClock "0:00:22"]
[BlackClock "0:00:05"]

1. b4 {[%clk 0:03:00]}  e5 {[%clk 0:03:00]} 2. Bb2 {[%clk 0:03:01]}  d6 {[%clk 0:02:57]} 3. b5 {[%clk 0:03:01]}  Nf6 {[%clk 0:02:57]} 4. a4 {[%clk 0:03:01]}  Be7 {[%clk 0:02:49]} 5. c4 {[%clk 0:03:02]}  O-O {[%clk 0:02:49]} 6. e3 {[%clk 0:03:02]}  Re8 {[%clk 0:02:43]} 7. Nf3 {[%clk 0:03:02]}  Nbd7 {[%clk 0:02:43]} 8. Be2 {[%clk 0:03:02]}  e4 {[%clk 0:02:41]} 9. Nd4 {[%clk 0:03:02]}  Nc5 {[%clk 0:02:41]} 10. O-O {[%clk 0:03:02]}  Nfd7 {[%clk 0:02:35]} 11. f4 {[%clk 0:03:02]}  a5 {[%clk 0:02:29]} 12. Nc3 {[%clk 0:02:59]}  Nb6 {[%clk 0:02:25]} 13. Qc2 {[%clk 0:02:53]}  Bf6 {[%clk 0:02:25]} 14. Ba3 {[%clk 0:02:53]}  Bd7 {[%clk 0:01:58]} 15. Rae1 {[%clk 0:02:07]}  Qe7 {[%clk 0:01:55]} 16. Nb3 {[%clk 0:01:57]}  Ncxa4 {[%clk 0:01:51]} 17. Nxa4 {[%clk 0:01:44]}  Nxa4 {[%clk 0:01:50]} 18. c5 {[%clk 0:01:45]}  Be6 {[%clk 0:01:40]} 19. c6 {[%clk 0:00:56]}  bxc6 {[%clk 0:01:37]} 20. bxc6 {[%clk 0:00:56]}  Nb6 {[%clk 0:01:24]} 21. Bb2 {[%clk 0:00:47]}  Bxb3 {[%clk 0:01:19]} 22. Qxb3 {[%clk 0:00:47]}  a4 {[%clk 0:01:19]} 23. Bxf6 {[%clk 0:00:42]}  Qxf6 {[%clk 0:01:06]} 24. Qa3 {[%clk 0:00:43]}  d5 {[%clk 0:01:01]} 25. Rb1 {[%clk 0:00:43]}  d4 {[%clk 0:00:59]} 26. Rfc1 {[%clk 0:00:42]}  Red8 {[%clk 0:00:51]} 27. Rxb6 {[%clk 0:00:33]}  dxe3 {[%clk 0:00:33]} 28. dxe3 {[%clk 0:00:27]}  cxb6 {[%clk 0:00:33]} 29. c7 {[%clk 0:00:27]}  Rdc8 {[%clk 0:00:27]} 30. Bg4 {[%clk 0:00:27]}  b5 {[%clk 0:00:13]} 31. Bxc8 {[%clk 0:00:26]}  Rxc8 {[%clk 0:00:14]} 32. Qc5 {[%clk 0:00:26]}  h6 {[%clk 0:00:01]} 33. Qxb5 {[%clk 0:00:26]}  a3 {[%clk 0:00:02]} 34. Qb7 {[%clk 0:00:24]}  Qe6 {[%clk 0:00:02]} 35. Qa7 {[%clk 0:00:22]}  Qd7 {[%clk 0:00:02]} 36. Qxa3 {[%clk 0:00:21]}  Rxc7 {[%clk 0:00:02]} 37. Qa8+ {[%clk 0:00:18]}  Kh7 {[%clk 0:00:02]} 38. Rxc7 {[%clk 0:00:18]}  Qxc7 {[%clk 0:00:02]} 39. Qxe4+ {[%clk 0:00:18]}  Kg8 {[%clk 0:00:02]} 40. Qd4 {[%clk 0:00:18]}  Qe7 {[%clk 0:00:02]} 41. h3 {[%clk 0:00:18]}  Qa3 {[%clk 0:00:02]} 42. Kf2 {[%clk 0:00:18]}  Qe7 {[%clk 0:00:03]} 43. Kf3 {[%clk 0:00:18]}  Qh4 {[%clk 0:00:03]} 44. Qd5 {[%clk 0:00:16]}  Qe7 {[%clk 0:00:03]} 45. Qa8+ {[%clk 0:00:16]}  Qf8 {[%clk 0:00:02]} 46. Qxf8+ {[%clk 0:00:16]}  Kxf8 {[%clk 0:00:03]} 47. Ke4 {[%clk 0:00:15]}  Ke7 {[%clk 0:00:04]} 48. Kd5 {[%clk 0:00:16]}  Kf6 {[%clk 0:00:04]} 49. e4 {[%clk 0:00:16]}  Kg6 {[%clk 0:00:04]} 50. g4 {[%clk 0:00:16]}  Kf6 {[%clk 0:00:04]} 51. e5+ {[%clk 0:00:16]}  Ke7 {[%clk 0:00:04]} 52. f5 {[%clk 0:00:17]}  Kd7 {[%clk 0:00:04]} 53. e6+ {[%clk 0:00:16]}  fxe6+ {[%clk 0:00:05]} 54. fxe6+ {[%clk 0:00:17]}  Ke7 {[%clk 0:00:06]} 55. Ke5 {[%clk 0:00:17]}  Ke8 {[%clk 0:00:03]} 56. h4 {[%clk 0:00:17]}  Ke7 {[%clk 0:00:03]} 57. h5 {[%clk 0:00:17]}  Ke8 {[%clk 0:00:04]} 58. Kd6 {[%clk 0:00:17]}  Kd8 {[%clk 0:00:04]} 59. e7+ {[%clk 0:00:18]}  Ke8 {[%clk 0:00:05]} 60. Ke6 {[%clk 0:00:19]}  g6 {[%clk 0:00:04]} 61. hxg6 {[%clk 0:00:20]}  h5 {[%clk 0:00:04]} 62. g7 {[%clk 0:00:21]}  hxg4 {[%clk 0:00:05]} 63. g8=Q# {[%clk 0:00:22]} 1-0


[Site "https://www.chess.com"]

[Event "Titled Tuesday Blitz August 10 2021"]
[White "Vlassov, Nikolai"]
[Black "Kukhmazov, Arsen"]
[WhiteFideId "4103360"]
[BlackFideId "24108260"]
[WhiteElo "2407"]
[BlackElo "2453"]
[Result "1-0"]
[Round "07"]
[TimeControl "180+1"]
[Date "2021.08.10"]
[WhiteClock "0:00:10"]
[BlackClock "0:00:01"]

1. e4 {[%clk 0:03:00]}  c6 {[%clk 0:02:58]} 2. d4 {[%clk 0:03:00]}  d5 {[%clk 0:02:59]} 3. e5 {[%clk 0:03:01]}  Bf5 {[%clk 0:02:54]} 4. Nc3 {[%clk 0:03:01]}  e6 {[%clk 0:02:52]} 5. g4 {[%clk 0:03:01]}  Bg6 {[%clk 0:02:53]} 6. Nge2 {[%clk 0:03:02]}  c5 {[%clk 0:02:53]} 7. Be3 {[%clk 0:03:00]}  Nc6 {[%clk 0:02:52]} 8. dxc5 {[%clk 0:03:00]}  Nxe5 {[%clk 0:02:46]} 9. Nf4 {[%clk 0:03:00]}  Nf6 {[%clk 0:02:32]} 10. Bb5+ {[%clk 0:02:53]}  Nfd7 {[%clk 0:02:07]} 11. Qe2 {[%clk 0:02:44]}  a6 {[%clk 0:01:43]} 12. Bxd7+ {[%clk 0:02:39]}  Kxd7 {[%clk 0:00:58]} 13. O-O-O {[%clk 0:02:32]}  Kc8 {[%clk 0:00:50]} 14. Ncxd5 {[%clk 0:02:19]}  exd5 {[%clk 0:00:47]} 15. Nxd5 {[%clk 0:02:19]}  Qe8 {[%clk 0:00:30]} 16. Nb6+ {[%clk 0:01:57]}  Kb8 {[%clk 0:00:31]} 17. Nxa8 {[%clk 0:01:12]}  Kxa8 {[%clk 0:00:32]} 18. Rhe1 {[%clk 0:01:07]}  f6 {[%clk 0:00:24]} 19. f4 {[%clk 0:01:05]}  Nc6 {[%clk 0:00:23]} 20. f5 {[%clk 0:01:03]}  Bf7 {[%clk 0:00:24]} 21. Kb1 {[%clk 0:01:02]}  Be7 {[%clk 0:00:23]} 22. Bf2 {[%clk 0:00:54]}  Qc8 {[%clk 0:00:24]} 23. c3 {[%clk 0:00:51]}  Rd8 {[%clk 0:00:24]} 24. Rxd8 {[%clk 0:00:50]}  Qxd8 {[%clk 0:00:24]} 25. Rd1 {[%clk 0:00:49]}  Qa5 {[%clk 0:00:25]} 26. b4 {[%clk 0:00:46]}  Qc7 {[%clk 0:00:10]} 27. Bg3 {[%clk 0:00:46]}  Qc8 {[%clk 0:00:08]} 28. a3 {[%clk 0:00:44]}  Bd8 {[%clk 0:00:05]} 29. Bd6 {[%clk 0:00:40]}  Bc7 {[%clk 0:00:05]} 30. Qe4 {[%clk 0:00:33]}  Ne5 {[%clk 0:00:05]} 31. g5 {[%clk 0:00:26]}  Bb3 {[%clk 0:00:05]} 32. Rd4 {[%clk 0:00:23]}  Ba4 {[%clk 0:00:05]} 33. gxf6 {[%clk 0:00:22]}  gxf6 {[%clk 0:00:06]} 34. Bxc7 {[%clk 0:00:20]}  Qxc7 {[%clk 0:00:07]} 35. Rd6 {[%clk 0:00:21]}  Bc6 {[%clk 0:00:07]} 36. Qh4 {[%clk 0:00:20]}  Qg7 {[%clk 0:00:07]} 37. Qg3 {[%clk 0:00:15]}  Qh6 {[%clk 0:00:05]} 38. Qxe5 {[%clk 0:00:10]}  Qh5 {[%clk 0:00:01]} 39. Rd8+ {[%clk 0:00:10]} 1-0


[Site "https://www.chess.com"]